bitfinex-derivatives/quotes_ETHF0:USTF0_20250803
["timestamp","ask_amount","ask_price","bid_price","bid_amount"]
[1754181797541,3.2078,3395.5,3395.4,0.58916]
[1754181797738,3.2078,3395.5,3395.3,3.9335]
[1754181798038,3.2078,3395.5,3395.1,2.07552]
[1754181798336,3.2078,3395.5,3395.4,3.9335]
[1754181799034,3.2078,3396.5,3396.2,0.58902]
[1754181799225,0.7944863,3396.4,3396.3,2.4296]
[1754181799423,3.0934,3396.9,3396.3,0.58901]
[1754181799625,1.0,3397.0,3396.8,1.4863]
[1754181799934,1.0,3397.0,3396.9,3.9335]
[1754181800237,1.0,3397.0,3396.6,2.9902]
[1754181800531,1.0,3397.0,3396.6,4.52245]
[1754181800732,1.0,3397.0,3396.8,0.58892]
[1754181800934,1.0,3397.0,3395.8,46.35897559]
[1754181800935,1.0,3397.0,3396.1,3.2078]
[1754181801238,0.58892,3396.8,3396.1,3.2078]
[1754181801425,3.2078,3396.7,3395.6,3.2078]
[1754181801629,7.2348,3395.9,3395.1,0.9433]
[1754181802025,0.5891,3395.8,3394.8,1.4863]
[1754181802238,7.2348,3395.9,3394.8,1.4863]
[1754181802239,7.2348,3395.9,3395.2,0.58919]
[1754181802426,0.9336,3395.3,3395.0,3.2078]
[1754181802627,0.58926,3394.9,3394.4,3.2078]
[1754181802830,4.027,3394.9,3394.5,3.2078]
[1754181803136,7.2348,3395.4,3394.5,3.2078]
[1754181803330,0.58925,3394.9,3394.5,3.2078]
[1754181803627,4.027,3394.7,3393.8,3.2078]
[1754181803931,3.2078,3394.5,3393.4,3.2078]
[1754181804137,3.0934,3393.5,3393.1,3.9335]
[1754181804331,0.58953,3393.3,3392.6,3.9335]
[1754181804530,3.2078,3393.4,3392.5,0.58965]
[1754181804531,3.79732,3393.4,3392.5,0.58965]
[1754181804835,3.79732,3393.4,3392.5,3.2078]
[1754181804836,2.419,3393.2,3392.5,3.2078]
[1754181805137,2.419,3393.2,3392.0,3.9335]
[1754181805138,1.608,3393.1,3392.1,3.2078]
[1754181805336,1.608,3393.1,3392.0,3.9335]
[1754181805337,1.608,3393.1,3392.7,4.6941]
[1754181805536,4.8158,3393.8,3392.8,2.4296]
[1754181805832,4.8158,3393.8,3393.3,0.58953]
[1754181806030,4.6932,3394.5,3394.2,0.58937]
[1754181806340,3.2078,3394.5,3394.2,4.52287]
[1754181806541,2.419,3395.0,3394.5,0.58932]
[1754181806739,3.79695,3395.5,3394.4,4.7117]
[1754181806740,2.5416,3395.4,3395.1,0.58921]
[1754181806939,3.2078,3395.5,3395.1,3.01881]
[1754181807132,3.2078,3395.5,3395.2,2.0931]
[1754181807538,3.2078,3395.5,3395.3,3.01878]
[1754181807839,0.58918,3395.3,3394.6,2.0932]
[1754181808039,6.3012,3395.5,3394.0,42.438]
[1754181808040,3.0222,3395.1,3394.3,3.2078]
[1754181808234,3.9681,3395.4,3395.0,0.58924]
[1754181808434,3.2078,3395.5,3395.2,0.58919]
[1754181808734,3.9681,3395.4,3394.0,0.58941]
[1754181808933,1.47283,3395.7,3393.9,5.5146]
[1754181808934,3.9681,3394.8,3394.2,0.58937]
[1754181809133,3.2078,3394.9,3394.7,0.58928]
[1754181809331,3.9681,3395.2,3395.0,0.58923]
[1754181809535,3.9681,3395.2,3394.3,3.2078]
[1754181809737,3.9681,3395.2,3394.4,0.58934]
[1754181809934,3.2078,3395.0,3394.4,0.58934]
[1754181810134,3.2078,3395.0,3394.1,1.6576]
[1754181810135,3.9681,3395.2,3394.1,4.8654]
[1754181810441,1.5317,3394.9,3394.0,2.3068]
[1754181810642,0.80280044,3394.8,3394.1,0.58939]
[1754181810934,3.2078,3395.2,3393.7,3.2078]
[1754181811142,3.8251977,3395.1,3394.8,0.58925]
[1754181811334,3.2078,3395.2,3395.1,0.58922]
[1754181811537,4.01073343,3395.2,3395.0,0.58923]
[1754181811833,1.0460502,3395.6,3395.2,0.5892]
[1754181812028,3.9681,3395.4,3395.1,0.58921]
[1754181812231,3.9681,3395.2,3394.5,2.24691]
[1754181812432,2.4364,3394.8,3393.7,3.2078]
[1754181812738,0.9459,3394.4,3393.7,3.2078]
[1754181813240,3.0222,3394.4,3394.3,0.58936]
[1754181813434,3.9681,3394.8,3394.2,0.58937]
[1754181813634,2.4364,3394.6,3394.4,0.58932]
[1754181813836,3.9681,3394.6,3394.4,0.58932]
[1754181814044,3.9681,3394.6,3394.3,0.58935]
[1754181814234,2.4364,3395.0,3393.9,1.6576]
[1754181814441,4.55741,3394.6,3393.8,0.58944]
[1754181814634,0.14655618,3394.5,3394.4,4.55374]
[1754181814945,6.18e-06,3394.5,3394.4,7.76154]
[1754181815130,1.0460502,3394.9,3394.8,4.55367]
[1754181815330,1.0460502,3395.0,3394.8,3.79707]
[1754181815536,3.2078,3395.5,3395.0,4.55364]
[1754181815537,0.2617802,3395.1,3395.0,4.55364]
[1754181815739,1.56863013,3395.4,3395.2,0.5892]
[1754181815933,1.56863013,3395.5,3395.3,7.1722]
[1754181816137,1.56863013,3395.6,3395.5,3.9644]
[1754181816442,2.10024633,3395.7,3395.6,0.58913]
[1754181816640,2.10024633,3395.7,3395.2,6.2208]
[1754181816841,1.57866355,3395.3,3395.2,3.6022]
[1754181817036,7.80866355,3396.1,3395.7,0.58911]
[1754181817238,7.1759,3396.1,3395.7,0.58911]
[1754181817545,3.2078,3396.1,3395.8,1.6576]
[1754181817849,3.2078,3396.1,3396.0,3.9644]
[1754181818440,3.2078,3396.1,3395.9,0.58908]
[1754181818748,3.2078,3396.1,3395.9,3.60208]
[1754181819042,3.2078,3396.1,3395.9,0.58908]
[1754181819245,0.9459,3396.0,3395.6,3.2078]
[1754181819546,3.9681,3396.2,3395.2,3.2078]
[1754181819741,3.9681,3396.2,3395.9,0.58907]
[1754181820137,0.58904,3396.2,3395.6,3.79693]
[1754181820340,1.4905,3396.0,3395.7,0.5891]
[1754181820543,2.4364,3396.0,3395.7,0.5891]
[1754181820845,2.4364,3395.9,3395.5,0.58915]
[1754181821348,2.4364,3395.9,3395.7,0.5891]
[1754181821546,3.9681,3396.2,3395.7,0.5891]
[1754181821848,3.9681,3396.1,3395.7,2.2467]
[1754181822048,3.9681,3396.1,3395.8,0.58909]
[1754181822349,3.9681,3396.1,3395.7,1.6576]
[1754181822647,3.9681,3396.0,3395.6,0.58912]
[1754181822850,3.9681,3396.0,3395.2,3.2078]
[1754181822851,0.58913,3395.7,3395.2,3.2078]
[1754181823053,6.23325,3396.1,3395.6,0.58912]
[1754181823347,3.2078,3396.1,3395.3,3.9644]
[1754181823644,0.58898,3396.5,3396.0,2.24666]
[1754181823845,3.2078,3396.5,3395.5,3.2078]
[1754181824148,0.58897,3396.6,3395.9,0.58907]
[1754181824450,3.9681,3396.3,3395.6,0.9514]
[1754181824651,3.2078,3396.5,3396.0,0.58906]
[1754181824853,3.9681,3396.3,3396.0,0.58906]
[1754181825157,4.6983,3396.5,3395.6,3.9644]
[1754181825343,4.6983,3396.5,3396.1,0.58904]
[1754181825544,3.9681,3396.4,3396.3,0.589]
[1754181826137,3.9681,3396.4,3396.0,0.58905]
[1754181826339,2.12069,3396.4,3395.9,0.58907]
[1754181826541,3.2078,3396.5,3395.6,3.9644]
[1754181826752,3.79678,3396.5,3395.6,3.9644]
[1754181826945,3.0222,3396.4,3395.7,0.58911]
[1754181827141,0.77052504,3396.3,3395.6,3.9644]
[1754181827339,5.73236355,3396.5,3395.6,3.9644]
[1754181827340,3.9681,3396.0,3395.6,3.9644]
[1754181827552,0.77052504,3395.9,3395.8,3.9644]
[1754181827764,3.2078,3396.5,3395.8,3.9644]
[1754181827947,0.77051098,3396.4,3396.1,0.58904]
[1754181828270,1.71641098,3396.3,3396.0,0.58906]
[1754181828545,0.77051098,3396.2,3396.0,3.60206]
[1754181828750,0.77042626,3396.1,3396.0,4.55346]
[1754181828953,1.5317,3396.2,3396.0,0.58906]
[1754181829347,3.2078,3396.5,3396.4,0.58899]
[1754181829544,0.9459,3396.8,3396.6,0.58895]
[1754181829744,0.77035146,3396.7,3396.6,0.58895]
[1754181829945,0.03576146,3396.7,3396.6,4.55335]
[1754181830145,1.16745492,3397.3,3396.9,4.55331]
[1754181830554,0.22155492,3397.3,3396.9,0.58891]
[1754181830742,0.22155492,3397.3,3396.9,4.55331]
[1754181831444,0.36569,3397.0,3396.9,7.76111]
[1754181831647,0.22155492,3397.3,3397.2,0.58885]
[1754181831846,0.22155492,3397.3,3397.2,4.55325]
[1754181832652,2.52456355,3398.3,3397.7,0.58876]
[1754181832948,2.4364,3398.2,3397.6,0.9514]
[1754181833456,3.9681,3398.3,3397.5,3.013]
[1754181833650,0.58871,3398.1,3397.6,0.58879]
[1754181833954,3.9681,3398.2,3397.6,0.58878]
[1754181834157,0.5887,3398.1,3397.1,0.9514]
[1754181834351,3.9681,3398.0,3397.5,0.5888]
[1754181834558,0.9459,3397.7,3397.1,0.58887]
[1754181834760,3.9681,3397.8,3396.7,3.9644]
[1754181835065,3.2078,3397.5,3396.8,0.58892]
[1754181835254,3.9681,3397.2,3396.8,0.58892]
[1754181835451,7.76477,3397.1,3396.5,0.58897]
[1754181835652,0.9459,3397.4,3396.6,3.2078]
[1754181835964,4.55693,3397.4,3396.6,1.6576]
[1754181836361,0.58887,3397.2,3396.6,1.6576]
[1754181836665,3.9681,3397.2,3396.3,1.6576]
[1754181836958,3.9681,3396.7,3396.3,2.24661]
[1754181837151,0.5889,3397.0,3396.3,1.6576]
[1754181837352,1.5317,3397.2,3396.9,0.58889]
[1754181837561,1.5317,3397.2,3396.4,2.3068]
[1754181837957,1.5317,3397.2,3396.0,1.47265]
[1754181837958,3.79662,3397.5,3396.6,3.8035]
[1754181838158,2.3294,3397.4,3396.6,3.8035]
[1754181838361,2.4859,3397.1,3396.1,4.7317]
[1754181838753,0.58886,3397.2,3396.6,0.58895]
[1754181839269,3.8525,3396.9,3396.6,0.58895]
[1754181839768,3.79663,3397.4,3396.9,0.5889]
[1754181840067,3.8525,3397.2,3396.9,0.5889]
[1754181840267,3.2078,3397.4,3396.4,3.8035]
[1754181840561,3.8525,3397.3,3397.0,0.58888]
[1754181841062,3.8525,3397.3,3397.1,0.58886]
[1754181841267,3.8525,3397.2,3397.1,0.58886]
[1754181841469,3.2078,3397.4,3397.1,0.58886]
[1754181841670,3.2078,3397.4,3397.2,3.46245]
[1754181842363,2.8897,3397.3,3396.7,0.58893]
[1754181842585,3.8525,3397.1,3396.4,0.589]
[1754181842868,1.5231,3396.2,3396.1,0.58903]
[1754181843059,3.8525,3396.3,3395.6,0.58913]
[1754181843261,3.8525,3396.3,3395.5,3.8035]
[1754181843455,3.8525,3396.5,3395.4,4.68069]
[1754181843760,3.8525,3396.5,3395.9,3.8035]
[1754181843963,3.2078,3396.0,3395.2,2.62791539]
[1754181844268,3.8525,3395.9,3394.9,5.4874]
[1754181844458,3.2078,3396.0,3394.0,0.24020093]
[1754181844459,1.3666,3396.0,3395.4,3.2078]
[1754181844656,2.3294,3396.2,3395.7,0.9299]
[1754181844861,2.3294,3396.1,3395.5,1.3497]
[1754181845056,1.3666,3396.8,3396.3,0.589]
[1754181845370,3.2078,3396.5,3396.0,2.11296]
[1754181845566,3.8525,3396.4,3396.1,0.58904]
[1754181845966,2.3294,3396.8,3396.2,3.8035]
[1754181846264,3.2078,3396.9,3395.9,3.2078]
[1754181846265,3.2078,3396.9,3396.0,3.8035]
[1754181846468,3.2078,3396.9,3396.8,0.58893]
[1754181846862,3.2078,3398.0,3397.5,0.5888]
[1754181847164,3.2078,3398.0,3397.4,5.27554]
[1754181847368,2.8897,3398.5,3398.0,0.58872]
[1754181847567,3.2078,3398.6,3398.3,0.58867]
[1754181847871,5.5372,3398.6,3398.3,2.8736]
[1754181848065,5.5372,3398.6,3398.4,0.58865]
[1754181848268,5.5372,3398.6,3398.3,1.3497]
[1754181848473,5.5372,3398.6,3397.9,3.8035]
[1754181849271,0.58863,3398.5,3397.9,1.5239]
[1754181849569,5.5372,3398.6,3397.8,3.2078]
[1754181849570,2.8897,3398.0,3397.8,3.2078]
[1754181849758,3.8525,3398.1,3397.4,4.39231]
[1754181849963,3.8525,3398.1,3397.4,2.11271]
[1754181850164,0.5888,3397.5,3396.6,0.58894]
[1754181850362,1.5231,3397.4,3396.8,3.2078]
[1754181850860,7.0603,3398.1,3397.5,0.5888]
[1754181851068,3.8525,3398.1,3397.5,0.5888]
[1754181851261,0.58885,3397.3,3396.9,1.5239]
[1754181851464,3.8525,3396.8,3396.4,3.2078]
[1754181851666,3.8525,3396.8,3396.2,1.3497]
[1754181851667,0.58894,3396.7,3396.2,1.3497]
[1754181851873,0.9628,3396.9,3396.1,3.79684]
[1754181852073,0.58893,3396.8,3396.1,3.79684]
[1754181852265,0.58893,3396.8,3396.0,2.11296]
[1754181852466,1.55171,3396.9,3396.1,3.79684]
[1754181852662,1.3666,3396.4,3395.8,1.3497]
[1754181852967,1.3666,3396.4,3395.8,1.93879]
[1754181852968,2.8897,3396.4,3395.8,1.93879]
[1754181853470,2.8897,3396.4,3395.7,3.2078]
[1754181853669,2.8897,3396.4,3395.7,3.7969]
[1754181853870,2.8897,3396.9,3396.2,0.58903]
[1754181854075,0.58898,3396.5,3396.1,4.5575]
[1754181854369,3.2078,3397.1,3396.1,4.5575]
[1754181854370,1.5231,3396.9,3396.1,3.2078]
[1754181854567,3.2078,3397.1,3396.3,1.5239]
[1754181854768,0.58896,3396.7,3396.3,1.5239]
[1754181854974,1.5231,3396.6,3396.2,0.58901]
[1754181855175,6.12616,3396.7,3396.1,1.5239]
[1754181855367,0.58899,3396.5,3396.1,1.5239]
[1754181855566,0.58899,3396.5,3395.6,3.2078]
[1754181855567,3.2078,3396.7,3395.7,4.90751539]
[1754181855775,7.0603,3397.2,3396.5,0.58897]
[1754181855962,7.0603,3397.2,3396.4,2.11289]
[1754181856169,0.5889,3397.0,3396.4,1.5239]
[1754181856368,3.8525,3396.7,3396.4,0.589]
[1754181856568,2.3294,3396.7,3396.4,0.589]
[1754181856769,3.8525,3396.7,3396.4,0.589]
[1754181856971,3.8525,3397.1,3396.8,1.5239]
[1754181857180,2.3294,3397.0,3396.8,1.5239]
[1754181857371,2.3294,3397.0,3396.6,0.58895]
[1754181857679,3.2078,3397.2,3396.4,2.62791539]
[1754181857869,3.2078,3397.2,3396.5,3.8035]
[1754181858179,2.3294,3397.1,3396.8,1.5239]
[1754181858370,2.3294,3397.1,3396.8,3.8035]
[1754181858574,2.3294,3397.1,3396.8,4.39242]
[1754181858769,3.8525,3397.1,3396.8,4.39242]
[1754181859078,1.5231,3397.0,3396.6,0.58896]
[1754181859269,2.3294,3397.1,3396.8,1.5239]
[1754181859463,2.3294,3397.1,3396.8,3.8035]
[1754181859668,3.8525,3397.0,3396.7,0.58894]
[1754181859864,3.8525,3397.0,3396.7,3.46254]
[1754181860078,3.8525,3397.9,3397.7,0.58876]
[1754181860375,1.3666,3397.8,3397.5,1.5239]
[1754181860571,3.2078,3398.0,3397.3,0.58883]
[1754181860770,3.8525,3397.9,3397.3,0.58883]
[1754181860971,3.2078,3397.6,3397.3,0.58883]
[1754181861173,0.58879,3397.6,3397.2,0.58885]
[1754181861382,0.58876,3397.8,3397.3,0.58883]
[1754181861572,3.8525,3397.5,3397.3,0.58883]
[1754181861877,3.8525,3397.5,3397.2,0.58886]
[1754181862276,3.2078,3398.0,3396.8,3.8035]
[1754181862480,4.44133,3397.4,3396.9,0.5889]
[1754181862781,3.8525,3397.3,3396.9,0.5889]
[1754181862981,3.8525,3397.3,3397.1,0.58887]
[1754181863184,2.3294,3397.3,3397.1,2.11277]
[1754181863979,2.3294,3397.3,3397.1,1.5239]
[1754181864579,3.2078,3397.6,3397.2,2.11276]
[1754181864883,3.8525,3397.5,3397.2,3.8035]
[1754181865075,2.8897,3397.5,3397.3,0.58884]
[1754181865274,3.8525,3397.5,3397.2,4.39235]
[1754181865584,3.8525,3397.4,3396.7,5.4874]
[1754181865882,1.5231,3397.3,3397.2,0.58884]
[1754181866082,3.2078,3397.6,3396.7,5.4874]
[1754181866083,3.2078,3397.6,3397.3,0.58884]
[1754181866382,4.44128,3397.7,3397.1,0.58887]
[1754181866584,4.44128,3397.7,3397.3,0.58883]
[1754181866585,3.8525,3397.5,3397.3,0.58883]
[1754181866875,0.58881,3397.5,3397.0,0.58888]
[1754181867080,3.2078,3397.6,3397.2,0.58885]
[1754181867081,3.8525,3397.4,3397.2,0.58885]
[1754181867670,1.3666,3397.9,3397.5,0.58879]
[1754181867871,3.8525,3397.8,3397.5,0.58879]
[1754181868071,3.9989,3397.7,3397.5,0.58879]
[1754181868275,3.2078,3398.0,3397.6,0.58878]
[1754181868474,2.3435,3397.9,3397.6,4.51838]
[1754181868671,3.9989,3397.9,3397.6,4.51838]
[1754181868870,0.58869,3398.2,3397.6,4.51838]
[1754181869075,3.9989,3397.8,3397.6,4.51838]
[1754181870087,2.3435,3397.8,3397.7,1.6213]
[1754181870278,3.9989,3398.0,3397.8,0.58875]
[1754181870474,3.2078,3398.4,3397.9,3.2078]
[1754181870685,3.9989,3398.6,3398.0,0.58871]
[1754181870887,3.79639,3398.8,3398.2,0.58868]
[1754181871088,3.9989,3398.4,3398.2,0.58868]
[1754181871686,3.9989,3398.4,3398.2,4.51828]
[1754181871885,4.8632,3398.4,3397.9,0.58874]
[1754181872084,3.2078,3398.4,3397.9,0.58874]
[1754181872286,3.9989,3398.2,3397.9,0.58874]
[1754181872489,3.9989,3398.2,3398.0,0.58871]
[1754181872788,3.9989,3398.2,3398.0,2.21001]
[1754181872988,3.9989,3398.2,3398.0,4.51831]
[1754181873486,3.9989,3398.2,3398.0,3.9296]
[1754181874686,3.9989,3398.2,3398.0,4.51831]
[1754181874994,3.9989,3397.9,3397.6,0.58878]
[1754181875289,0.58874,3397.9,3397.4,0.58882]
[1754181875485,3.9989,3397.5,3397.4,0.58882]
[1754181875686,3.9989,3397.4,3397.1,3.9296]
[1754181875991,3.9989,3397.4,3397.2,0.58886]
[1754181876292,3.9989,3397.4,3397.2,3.9296]
[1754181876492,3.9989,3397.3,3397.1,0.58887]
[1754181876991,3.9989,3397.3,3397.1,4.51847]
[1754181877188,3.9989,3397.3,3397.1,4.83808539]
[1754181877491,0.58879,3397.6,3397.0,5.83571539]
[1754181877492,0.9852,3397.2,3397.0,5.83571539]
[1754181877694,3.9989,3397.1,3397.0,2.62791539]
[1754181878092,3.9989,3397.0,3396.9,2.62791539]
[1754181878594,3.79666,3397.2,3396.6,3.69872928]
[1754181878790,3.9989,3396.8,3396.6,3.69872928]
[1754181878991,3.9989,3396.7,3396.6,3.69872928]
[1754181879197,3.9989,3396.7,3396.4,7.72639]
[1754181879791,3.9989,3396.7,3396.5,3.9296]
[1754181880093,3.9989,3396.7,3396.5,4.51857]
[1754181880292,2.3435,3396.7,3396.5,6.58547183]
[1754181880588,2.3435,3396.7,3396.5,8.20677183]
[1754181880791,2.3435,3396.7,3396.6,1.6213]
[1754181881302,3.9989,3396.6,3396.5,3.68820183]
[1754181881698,0.58898,3396.5,3396.4,3.68820183]
[1754181881892,3.9989,3396.5,3396.4,3.68820183]
[1754181882399,3.9989,3396.5,3396.4,0.02984183]
[1754181882592,0.58906,3396.1,3395.8,5.27065207]
[1754181882793,0.58908,3395.9,3395.8,5.27065207]
[1754181883100,3.2078,3396.2,3395.7,8.27635207]
[1754181883294,0.9852,3395.8,3395.7,8.27635207]
[1754181883496,5.8484,3395.8,3395.7,5.27065207]
[1754181883999,3.22972,3395.7,3395.6,5.27065207]
[1754181884496,0.6776,3395.2,3395.1,6.87795637]
[1754181884797,3.8854,3395.2,3395.1,6.87795637]
[1754181885389,3.8854,3395.2,3395.1,5.94730637]
[1754181885589,0.58929,3394.8,3394.6,0.9239]
[1754181885801,3.79709,3394.8,3394.6,0.9239]
[1754181886502,3.79709,3394.8,3394.4,8.27632405]
[1754181886701,3.79709,3394.8,3394.5,0.9239]
[1754181887094,3.88549,3394.8,3394.5,0.9239]
[1754181887302,3.2078,3394.8,3394.2,0.9239]
[1754181887497,3.2078,3394.8,3393.4,18.85282115]
[1754181887498,1.47323,3394.7,3393.4,8.27632405]
[1754181887697,1.47323,3394.7,3393.4,6.21475063]
[1754181887698,3.8732,3393.5,3393.4,6.21475063]
[1754181887905,3.2078,3393.5,3393.4,6.07705063]
[1754181888593,3.2078,3393.5,3393.4,7.00095063]
[1754181888798,3.2078,3393.5,3393.4,6.07705063]
[1754181888996,0.58952,3393.4,3393.1,0.9239]
[1754181889194,3.2837,3393.5,3392.7,1.51352]
[1754181889195,3.2078,3393.5,3392.7,1.51352]
[1754181889504,3.2078,3393.5,3392.6,3.2078]
[1754181889505,0.58952,3393.4,3393.0,1.3844]
[1754181889806,0.58958,3393.1,3392.8,1.6213]
[1754181890101,0.58956,3393.2,3393.0,0.9239]
[1754181890300,42.411,3393.8,3392.8,3.0057]
[1754181890598,42.411,3393.8,3392.4,1.47423]
[1754181890599,42.411,3393.8,3393.2,3.2078]
[1754181890798,42.411,3393.8,3393.5,3.0057]
[1754181891001,0.58946,3393.7,3393.6,3.0057]
[1754181891199,0.58946,3393.7,3393.6,1.6213]
[1754181891395,3.2078,3393.9,3393.6,1.6213]
[1754181891590,3.2078,3393.9,3393.8,3.9296]
[1754181891895,3.2078,3394.4,3394.3,3.9296]
[1754181892206,3.79694,3395.6,3394.9,1.51316]
[1754181892404,3.79694,3395.6,3395.0,0.9239]
[1754181892605,3.2078,3395.2,3395.0,1.6213]
[1754181892898,0.58919,3395.4,3395.2,0.9239]
[1754181893105,0.58922,3395.2,3394.9,2.5452]
[1754181893300,3.797,3395.3,3395.0,1.6213]
[1754181893506,3.2078,3395.3,3395.1,3.9296]
[1754181893800,4.26231431,3395.3,3395.2,3.9296]
[1754181894000,5.08029602,3395.3,3395.2,3.9296]
[1754181894307,4.02578171,3395.3,3395.2,3.9296]
[1754181895111,4.02578171,3395.3,3394.9,1.3844]
[1754181895301,0.58927,3394.9,3394.4,3.0057]
[1754181895603,3.2837,3395.3,3394.4,2.3083]
[1754181895903,0.58936,3394.3,3394.1,2.5452]
[1754181896111,24.017,3394.8,3394.2,0.9239]
[1754181896404,0.58934,3394.5,3394.3,0.9239]
[1754181896608,0.58932,3394.6,3394.0,1.3844]
[1754181896806,0.58938,3394.2,3393.6,3.2078]
[1754181897003,24.0929,3394.8,3393.6,3.2078]
[1754181897004,24.0929,3394.8,3393.7,3.9296]
[1754181897201,3.2078,3394.5,3393.8,0.9239]
[1754181897400,3.2078,3394.5,3394.0,0.9239]
[1754181897401,0.58939,3394.2,3394.0,0.9239]
[1754181897608,3.2078,3394.5,3393.9,2.5452]
[1754181897807,3.79713,3394.5,3393.8,0.58944]
[1754181897997,3.2153,3394.5,3394.0,0.58941]
[1754181898198,3.2153,3394.5,3393.8,0.58944]
[1754181898405,3.2153,3394.5,3393.9,0.9482]
[1754181898612,3.2078,3394.5,3394.1,1.5232]
[1754181898798,3.2078,3394.5,3394.4,0.58934]
[1754181899112,24.007,3394.9,3394.6,2.9569]
[1754181899304,3.2078,3395.0,3394.8,2.3819]
[1754181899608,3.2078,3395.0,3394.9,3.9051]
[1754181901703,3.2078,3396.5,3394.9,2.9569]
[1754181901902,4.5574,3396.5,3396.1,3.9051]
[1754181902108,3.2078,3396.5,3396.2,3.9051]
[1754181902410,3.2078,3396.5,3396.4,3.9051]
[1754181903110,1.0,3397.0,3396.4,3.2078]
[1754181903413,0.84066951,3396.9,3396.6,1.4337]
[1754181903606,1.0,3397.0,3396.8,2.4714]
[1754181903913,1.0,3397.0,3396.6,3.9051]
[1754181904111,1.0,3397.0,3396.4,3.2078]
[1754181904318,1.0,3397.0,3396.9,2.4714]
[1754181905012,1.0,3397.0,3396.9,3.9051]
[1754181905401,1.05451431,3397.9,3397.5,0.58879]
[1754181905610,1.05451431,3397.9,3396.3,4.25002412]
[1754181905611,0.84138668,3397.8,3397.7,3.9051]
[1754181905820,0.84138668,3397.8,3397.7,2.9569]
[1754181906111,0.84138668,3397.8,3397.7,3.9051]
[1754181906417,1.3496,3398.5,3397.8,0.58875]
[1754181906611,1.3496,3398.5,3398.2,2.9569]
[1754181906812,1.3496,3398.5,3398.3,2.4714]
[1754181907010,1.4991,3398.6,3398.4,0.9482]
[1754181907212,42.42,3398.8,3398.4,3.9051]
[1754181907213,0.84175978,3398.5,3398.4,3.9051]
[1754181907809,1.3496,3398.7,3398.5,0.9482]
[1754181908018,1.3496,3398.7,3398.5,2.4714]
[1754181908316,1.3496,3398.7,3398.1,3.2078]
[1754181908513,0.58861,3398.6,3398.1,4.156]
[1754181908815,1.3496,3398.4,3398.3,0.9482]
[1754181909514,2.8487,3397.9,3397.8,0.9482]
[1754181909912,2.08789,3397.6,3397.1,4.156]
[1754181910122,1.3496,3397.2,3397.0,0.9482]
[1754181910411,0.58872,3398.0,3397.7,2.4714]
[1754181910605,1.3496,3397.9,3397.8,0.9482]
[1754181910916,1.4991,3398.0,3397.8,0.9482]
[1754181911112,1.3496,3398.2,3398.0,0.9482]
[1754181911315,25.89429,3398.2,3398.1,0.9482]
[1754181911511,0.58875,3397.9,3397.6,0.9482]
[1754181911709,0.58877,3397.7,3397.4,4.156]
[1754181911909,1.3496,3397.5,3397.4,4.156]
[1754181912118,1.3496,3397.5,3397.4,4.74482]
[1754181912315,3.2078,3398.5,3397.4,3.2078]
[1754181912526,3.2078,3398.5,3397.9,0.58874]
[1754181912733,9.064,3398.9,3398.3,0.58867]
[1754181913026,0.58854,3399.1,3398.2,3.79648]
[1754181913027,23.946,3398.8,3398.2,3.79648]
[1754181913211,0.58854,3399.1,3398.2,3.79648]
[1754181913412,23.945,3399.0,3398.2,3.2078]
[1754181913720,0.58862,3398.6,3398.2,3.2078]
[1754181914020,0.58861,3398.7,3398.2,3.2078]
[1754181914420,27.1498,3398.8,3397.6,3.2078]
[1754181914723,0.58867,3398.3,3397.6,3.2078]
[1754181914914,3.2078,3398.4,3397.2,3.2078]
[1754181915223,3.2078,3398.0,3397.2,3.2078]
[1754181915419,0.58874,3397.9,3397.2,3.2078]
[1754181915621,27.1418,3398.0,3396.8,0.58892]
[1754181915622,3.2078,3398.8,3397.6,3.2078]
[1754181915919,0.58868,3398.3,3397.6,3.2078]
[1754181916413,3.79646,3398.4,3397.6,3.79657]
[1754181916614,0.58864,3398.5,3397.6,3.79657]
[1754181917315,0.58869,3398.2,3397.6,3.2078]
[1754181917715,3.2078,3398.4,3397.6,3.79659]
[1754181917926,23.924,3398.6,3397.6,3.2078]
[1754181918318,24.51262,3398.6,3397.7,0.58877]
[1754181918517,0.58867,3398.4,3397.6,3.79658]
[1754181918718,0.58867,3398.4,3397.6,3.2078]
[1754181919021,0.58863,3398.6,3397.7,0.58877]
[1754181919219,0.58865,3398.4,3397.6,3.2078]
[1754181919423,0.58874,3398.0,3397.6,3.2078]
[1754181919620,0.58874,3398.0,3397.2,3.2078]
[1754181919915,0.58874,3398.0,3397.2,3.79664]
[1754181920127,0.58871,3398.1,3397.2,3.79664]
[1754181920321,0.58875,3397.9,3397.2,3.2078]
[1754181920525,3.2078,3398.4,3397.2,3.79665]
[1754181921020,3.2078,3398.4,3397.2,3.2078]
[1754181921222,0.58882,3397.5,3397.2,3.2078]
[1754181921730,1.47143,3398.9,3397.2,3.2078]
[1754181921731,0.58855,3399.0,3398.1,0.5887]
[1754181921920,0.58854,3399.1,3398.3,3.79647]
[1754181922321,3.2078,3399.2,3398.5,0.58862]
[1754181922520,0.58853,3399.1,3398.4,0.58864]
[1754181922722,3.2078,3399.2,3398.7,0.58859]
[1754181922914,3.79632,3399.2,3398.4,0.58865]
[1754181923118,3.2078,3399.2,3398.6,0.5886]
[1754181923727,0.58858,3398.9,3398.7,3.2078]
[1754181924027,24.48555,3399.0,3398.7,3.2078]
[1754181924328,24.48555,3399.0,3398.1,0.5887]
[1754181924526,24.48555,3399.0,3398.3,3.2078]